[Event "Titled Tuesday Blitz November 08 Early 2022"]
[White "czernikowskqa"]
[Black "Sanchez, Robert"]
[BlackFideId "2034360"]
[WhiteElo "1737"]
[BlackElo "2399"]
[Result "0-1"]
[Round "04"]
[TimeControl "180+1"]
[Date "2022.11.09"]
[WhiteClock "0:00:23"]
[BlackClock "0:00:10"]

1. Nf3 {[%clk 0:03:00]}  d5 {[%clk 0:02:59]} 2. c4 {[%clk 0:02:59]}  e6 {[%clk 0:03:00]} 3. d4 {[%clk 0:02:59]}  Nf6 {[%clk 0:03:00]} 4. Nc3 {[%clk 0:02:59]}  Be7 {[%clk 0:03:01]} 5. cxd5 {[%clk 0:03:00]}  exd5 {[%clk 0:03:01]} 6. Bg5 {[%clk 0:03:00]}  c6 {[%clk 0:03:00]} 7. e3 {[%clk 0:03:01]}  O-O {[%clk 0:03:00]} 8. Bd3 {[%clk 0:03:01]}  a5 {[%clk 0:03:01]} 9. Qc2 {[%clk 0:03:01]}  h6 {[%clk 0:03:01]} 10. Bh4 {[%clk 0:03:01]}  Na6 {[%clk 0:03:02]} 11. a3 {[%clk 0:03:00]}  Nc7 {[%clk 0:02:59]} 12. O-O {[%clk 0:03:00]}  Bg4 {[%clk 0:02:59]} 13. Ne5 {[%clk 0:02:59]}  Bc8 {[%clk 0:02:55]} 14. Rab1 {[%clk 0:02:50]}  Ne6 {[%clk 0:02:54]} 15. b4 {[%clk 0:02:49]}  axb4 {[%clk 0:02:51]} 16. axb4 {[%clk 0:02:49]}  Nd7 {[%clk 0:02:46]} 17. Bxe7 {[%clk 0:02:45]}  Qxe7 {[%clk 0:02:45]} 18. Nf3 {[%clk 0:02:44]}  Ng5 {[%clk 0:02:38]} 19. Nd2 {[%clk 0:02:40]}  Nb6 {[%clk 0:02:29]} 20. b5 {[%clk 0:02:35]}  c5 {[%clk 0:02:24]} 21. dxc5 {[%clk 0:02:35]}  Qxc5 {[%clk 0:02:25]} 22. Rfc1 {[%clk 0:02:30]}  Be6 {[%clk 0:02:14]} 23. Ne2 {[%clk 0:02:29]}  Qxc2 {[%clk 0:02:05]} 24. Rxc2 {[%clk 0:02:30]}  Ra3 {[%clk 0:02:02]} 25. Nf4 {[%clk 0:02:21]}  Rd8 {[%clk 0:01:28]} 26. h4 {[%clk 0:02:20]}  Nh7 {[%clk 0:01:24]} 27. Bxh7+ {[%clk 0:02:13]}  Kxh7 {[%clk 0:01:24]} 28. Nf3 {[%clk 0:02:10]}  Bf5 {[%clk 0:01:20]} 29. Rbc1 {[%clk 0:01:56]}  Bxc2 {[%clk 0:01:19]} 30. Rxc2 {[%clk 0:01:57]}  Rb3 {[%clk 0:01:11]} 31. Nd4 {[%clk 0:01:55]}  Rb1+ {[%clk 0:01:09]} 32. Kh2 {[%clk 0:01:55]}  Nc4 {[%clk 0:01:10]} 33. Nxd5 {[%clk 0:01:50]}  Na3 {[%clk 0:01:01]} 34. Ra2 {[%clk 0:01:35]}  Nxb5 {[%clk 0:01:00]} 35. Nxb5 {[%clk 0:01:28]}  Rxb5 {[%clk 0:00:57]} 36. Nf4 {[%clk 0:01:28]}  Rb8 {[%clk 0:00:53]} 37. Rc2 {[%clk 0:01:29]}  Ra5 {[%clk 0:00:51]} 38. Rc7 {[%clk 0:01:29]}  Kg8 {[%clk 0:00:51]} 39. Nd3 {[%clk 0:01:27]}  b5 {[%clk 0:00:50]} 40. Ne5 {[%clk 0:01:28]}  Ra6 {[%clk 0:00:35]} 41. Nc6 {[%clk 0:01:16]}  Rbb6 {[%clk 0:00:30]} 42. Ne7+ {[%clk 0:01:14]}  Kh7 {[%clk 0:00:29]} 43. g4 {[%clk 0:01:13]}  b4 {[%clk 0:00:28]} 44. Nd5 {[%clk 0:01:11]}  Rb5 {[%clk 0:00:25]} 45. e4 {[%clk 0:01:08]}  b3 {[%clk 0:00:23]} 46. g5 {[%clk 0:00:59]}  hxg5 {[%clk 0:00:22]} 47. hxg5 {[%clk 0:00:59]}  b2 {[%clk 0:00:23]} 48. Nc3 {[%clk 0:00:57]}  b1=Q {[%clk 0:00:22]} 49. Nxb1 {[%clk 0:00:57]}  Rxb1 {[%clk 0:00:23]} 50. Kg3 {[%clk 0:00:57]}  Kg6 {[%clk 0:00:20]} 51. Kg4 {[%clk 0:00:54]}  Rg1+ {[%clk 0:00:20]} 52. Kf4 {[%clk 0:00:54]}  Rxg5 {[%clk 0:00:20]} 53. Rb7 {[%clk 0:00:50]}  f6 {[%clk 0:00:19]} 54. Rc7 {[%clk 0:00:50]}  Ra2 {[%clk 0:00:19]} 55. f3 {[%clk 0:00:50]}  Rh5 {[%clk 0:00:19]} 56. Rc8 {[%clk 0:00:49]}  Rf2 {[%clk 0:00:18]} 57. Kg3 {[%clk 0:00:49]}  Rhh2 {[%clk 0:00:18]} 58. Rc5 {[%clk 0:00:48]}  Rhg2+ {[%clk 0:00:18]} 59. Kf4 {[%clk 0:00:48]}  Ra2 {[%clk 0:00:19]} 60. Rc7 {[%clk 0:00:47]}  Rgb2 {[%clk 0:00:18]} 61. Rc6 {[%clk 0:00:47]}  Rb3 {[%clk 0:00:18]} 62. Rc1 {[%clk 0:00:42]}  Raa3 {[%clk 0:00:18]} 63. Rg1+ {[%clk 0:00:42]}  Kf7 {[%clk 0:00:18]} 64. Rf1 {[%clk 0:00:43]}  g5+ {[%clk 0:00:18]} 65. Kg4 {[%clk 0:00:43]}  Kg6 {[%clk 0:00:18]} 66. Rf2 {[%clk 0:00:42]}  Re3 {[%clk 0:00:16]} 67. Rf1 {[%clk 0:00:42]}  Kf7 {[%clk 0:00:15]} 68. Rf2 {[%clk 0:00:41]}  Ke6 {[%clk 0:00:16]} 69. Rf1 {[%clk 0:00:41]}  Ke5 {[%clk 0:00:16]} 70. Rf2 {[%clk 0:00:41]}  Re1 {[%clk 0:00:15]} 71. Rg2 {[%clk 0:00:35]}  Raa1 {[%clk 0:00:15]} 72. Kh5 {[%clk 0:00:25]}  Kf4 {[%clk 0:00:13]} 73. Rb2 {[%clk 0:00:19]}  Kxf3 {[%clk 0:00:12]} 74. Kg6 {[%clk 0:00:18]}  g4 {[%clk 0:00:11]} 75. Kxf6 {[%clk 0:00:17]}  g3 {[%clk 0:00:12]} 76. Rb3+ {[%clk 0:00:18]}  Re3 {[%clk 0:00:12]} 77. Rb8 {[%clk 0:00:18]}  g2 {[%clk 0:00:12]} 78. Rg8 {[%clk 0:00:18]}  g1=Q {[%clk 0:00:12]} 79. Rf8 {[%clk 0:00:19]}  Rxe4 {[%clk 0:00:11]} 80. Kf7 {[%clk 0:00:19]}  Ra7+ {[%clk 0:00:11]} 81. Kf6 {[%clk 0:00:19]}  Rf4+ {[%clk 0:00:09]} 82. Ke5 {[%clk 0:00:19]}  Rxf8 {[%clk 0:00:10]} 83. Kd5 {[%clk 0:00:20]}  Qd1+ {[%clk 0:00:09]} 84. Ke6 {[%clk 0:00:21]}  Re8+ {[%clk 0:00:10]} 85. Kf5 {[%clk 0:00:21]}  Qd5+ {[%clk 0:00:10]} 86. Kf6 {[%clk 0:00:22]}  Rf7+ {[%clk 0:00:10]} 87. Kg6 {[%clk 0:00:22]}  Qf5+ {[%clk 0:00:10]} 88. Kh6 {[%clk 0:00:23]}  Rh7# {[%clk 0:00:10]} 0-1


[Site "https://www.chess.com"]

[Event "Titled Tuesday Blitz November 08 Early 2022"]
[White "Arabidze, Meri"]
[Black "Reprintsev, Alexander"]
[WhiteFideId "13604040"]
[BlackFideId "14100541"]
[WhiteElo "2403"]
[BlackElo "2230"]
[Result "0-1"]
[Round "05"]
[TimeControl "180+1"]
[Date "2022.11.09"]
[WhiteClock "0:00:01"]
[BlackClock "0:00:02"]

1. Nf3 {[%clk 0:02:56]}  d5 {[%clk 0:02:27]} 2. b3 {[%clk 0:02:55]}  Bf5 {[%clk 0:02:23]} 3. Bb2 {[%clk 0:02:55]}  e6 {[%clk 0:02:23]} 4. g3 {[%clk 0:02:55]}  Nd7 {[%clk 0:02:23]} 5. Bg2 {[%clk 0:02:55]}  Ngf6 {[%clk 0:02:21]} 6. O-O {[%clk 0:02:55]}  Be7 {[%clk 0:02:19]} 7. c4 {[%clk 0:02:56]}  O-O {[%clk 0:02:18]} 8. Nc3 {[%clk 0:02:56]}  c6 {[%clk 0:02:18]} 9. d3 {[%clk 0:02:56]}  h6 {[%clk 0:02:17]} 10. Rc1 {[%clk 0:02:56]}  Qa5 {[%clk 0:02:12]} 11. Rc2 {[%clk 0:02:54]}  Rfd8 {[%clk 0:02:10]} 12. Qa1 {[%clk 0:02:53]}  Bf8 {[%clk 0:02:09]} 13. Rcc1 {[%clk 0:02:49]}  Ba3 {[%clk 0:02:08]} 14. Rfd1 {[%clk 0:02:45]}  Rac8 {[%clk 0:02:06]} 15. Nd4 {[%clk 0:02:42]}  Bg6 {[%clk 0:02:02]} 16. cxd5 {[%clk 0:02:39]}  exd5 {[%clk 0:01:54]} 17. Bxa3 {[%clk 0:02:29]}  Qxa3 {[%clk 0:01:54]} 18. e4 {[%clk 0:02:27]}  dxe4 {[%clk 0:01:32]} 19. dxe4 {[%clk 0:02:28]}  Ne5 {[%clk 0:01:30]} 20. h3 {[%clk 0:02:16]}  a6 {[%clk 0:00:58]} 21. Nf5 {[%clk 0:02:10]}  Bxf5 {[%clk 0:00:54]} 22. exf5 {[%clk 0:02:11]}  Nd3 {[%clk 0:00:53]} 23. Rc2 {[%clk 0:02:07]}  Nb4 {[%clk 0:00:53]} 24. Rcd2 {[%clk 0:02:03]}  Rxd2 {[%clk 0:00:53]} 25. Rxd2 {[%clk 0:02:04]}  Re8 {[%clk 0:00:52]} 26. Qd1 {[%clk 0:01:57]}  Qa5 {[%clk 0:00:50]} 27. g4 {[%clk 0:01:54]}  Qc5 {[%clk 0:00:36]} 28. Ne2 {[%clk 0:01:39]}  Qe5 {[%clk 0:00:30]} 29. Ng3 {[%clk 0:01:38]}  Qe1+ {[%clk 0:00:27]} 30. Qxe1 {[%clk 0:01:39]}  Rxe1+ {[%clk 0:00:28]} 31. Kh2 {[%clk 0:01:40]}  Kf8 {[%clk 0:00:27]} 32. Rd8+ {[%clk 0:01:31]}  Re8 {[%clk 0:00:26]} 33. Rd2 {[%clk 0:01:31]}  Nbd5 {[%clk 0:00:22]} 34. Bxd5 {[%clk 0:01:24]}  Nxd5 {[%clk 0:00:21]} 35. h4 {[%clk 0:01:22]}  Re1 {[%clk 0:00:18]} 36. Kg2 {[%clk 0:01:19]}  Ra1 {[%clk 0:00:16]} 37. g5 {[%clk 0:01:14]}  hxg5 {[%clk 0:00:16]} 38. hxg5 {[%clk 0:01:14]}  Nb4 {[%clk 0:00:16]} 39. f6 {[%clk 0:01:02]}  gxf6 {[%clk 0:00:16]} 40. gxf6 {[%clk 0:01:03]}  Nd5 {[%clk 0:00:16]} 41. Ne4 {[%clk 0:00:59]}  Re1 {[%clk 0:00:15]} 42. Kf3 {[%clk 0:00:59]}  a5 {[%clk 0:00:14]} 43. Nc5 {[%clk 0:00:54]}  Nxf6 {[%clk 0:00:11]} 44. Nxb7 {[%clk 0:00:54]}  a4 {[%clk 0:00:11]} 45. bxa4 {[%clk 0:00:54]}  Nd5 {[%clk 0:00:11]} 46. a5 {[%clk 0:00:52]}  Re8 {[%clk 0:00:09]} 47. a6 {[%clk 0:00:51]}  Ra8 {[%clk 0:00:10]} 48. Nc5 {[%clk 0:00:50]}  Nb4 {[%clk 0:00:09]} 49. Rd6 {[%clk 0:00:15]}  Nxa6 {[%clk 0:00:09]} 50. Ne4 {[%clk 0:00:14]}  Nb4 {[%clk 0:00:08]} 51. Ng5 {[%clk 0:00:05]}  Rxa2 {[%clk 0:00:06]} 52. Rf6 {[%clk 0:00:05]}  Ke7 {[%clk 0:00:05]} 53. Rxf7+ {[%clk 0:00:05]}  Kd6 {[%clk 0:00:06]} 54. Rf6+ {[%clk 0:00:05]}  Ke5 {[%clk 0:00:04]} 55. Rf8 {[%clk 0:00:04]}  Ra3+ {[%clk 0:00:05]} 56. Kg2 {[%clk 0:00:04]}  Nd5 {[%clk 0:00:05]} 57. Nf3+ {[%clk 0:00:04]}  Kd6 {[%clk 0:00:05]} 58. Rc8 {[%clk 0:00:05]}  Kd7 {[%clk 0:00:04]} 59. Rb8 {[%clk 0:00:05]}  Nf4+ {[%clk 0:00:04]} 60. Kg3 {[%clk 0:00:04]}  Ne2+ {[%clk 0:00:04]} 61. Kg4 {[%clk 0:00:05]}  Ra4+ {[%clk 0:00:03]} 62. Kg5 {[%clk 0:00:05]}  Nd4 {[%clk 0:00:03]} 63. Ne5+ {[%clk 0:00:05]}  Kd6 {[%clk 0:00:03]} 64. Nf7+ {[%clk 0:00:04]}  Kc5 {[%clk 0:00:03]} 65. Kf6 {[%clk 0:00:02]}  Nf3 {[%clk 0:00:02]} 66. Nd8 {[%clk 0:00:02]}  Rf4+ {[%clk 0:00:02]} 67. Ke6 {[%clk 0:00:02]}  Nd4+ {[%clk 0:00:02]} 68. Kd7 {[%clk 0:00:02]}  Rxf2 {[%clk 0:00:02]} 69. Ra8 {[%clk 0:00:02]}  Rd2 {[%clk 0:00:01]} 70. Kc7 {[%clk 0:00:01]}  Nb5+ {[%clk 0:00:02]} 71. Kc8 {[%clk 0:00:01]}  Rd5 {[%clk 0:00:02]} 0-1


[Site "https://www.chess.com"]

[Event "Titled Tuesday Blitz November 08 Early 2022"]
[White "Avazkhonov, Alikhon"]
[Black "Noboa Silva, Kevin"]
[WhiteFideId "14208504"]
[BlackFideId "3618471"]
[WhiteElo "1739"]
[BlackElo "2178"]
[Result "0-1"]
[Round "05"]
[TimeControl "180+1"]
[Date "2022.11.09"]
[WhiteClock "0:00:08"]
[BlackClock "0:01:09"]

1. d4 {[%clk 0:03:00]}  Nf6 {[%clk 0:02:59]} 2. c4 {[%clk 0:02:59]}  e6 {[%clk 0:02:59]} 3. Nc3 {[%clk 0:02:59]}  Bb4 {[%clk 0:02:58]} 4. e3 {[%clk 0:02:59]}  O-O {[%clk 0:02:57]} 5. Bd2 {[%clk 0:02:59]}  b6 {[%clk 0:02:55]} 6. Nf3 {[%clk 0:02:58]}  Bb7 {[%clk 0:02:55]} 7. Bd3 {[%clk 0:02:59]}  d5 {[%clk 0:02:53]} 8. cxd5 {[%clk 0:02:59]}  exd5 {[%clk 0:02:53]} 9. Rc1 {[%clk 0:03:00]}  Re8 {[%clk 0:02:51]} 10. Ne5 {[%clk 0:02:55]}  c5 {[%clk 0:02:50]} 11. O-O {[%clk 0:01:35]}  Nc6 {[%clk 0:02:42]} 12. Bb5 {[%clk 0:01:12]}  Re6 {[%clk 0:02:41]} 13. a3 {[%clk 0:00:37]}  Bxc3 {[%clk 0:02:36]} 14. Bxc3 {[%clk 0:00:37]}  c4 {[%clk 0:02:35]} 15. Ba4 {[%clk 0:00:35]}  a6 {[%clk 0:02:26]} 16. f4 {[%clk 0:00:28]}  Ne4 {[%clk 0:02:23]} 17. f5 {[%clk 0:00:18]}  Rd6 {[%clk 0:02:14]} 18. Bxc6 {[%clk 0:00:13]}  Bxc6 {[%clk 0:02:14]} 19. Bb4 {[%clk 0:00:13]}  Rh6 {[%clk 0:02:08]} 20. Ng4 {[%clk 0:00:13]}  Rh4 {[%clk 0:02:04]} 21. g3 {[%clk 0:00:11]}  Rh5 {[%clk 0:02:02]} 22. f6 {[%clk 0:00:11]}  Rg5 {[%clk 0:01:45]} 23. fxg7 {[%clk 0:00:08]}  Kxg7 {[%clk 0:01:18]} 24. Ne5 {[%clk 0:00:08]}  Be8 {[%clk 0:01:17]} 25. Rf4 {[%clk 0:00:08]}  f6 {[%clk 0:01:14]} 26. Nf3 {[%clk 0:00:07]}  Bh5 {[%clk 0:01:10]} 27. Nh4 {[%clk 0:00:08]}  Bxd1 {[%clk 0:01:09]} 0-1


[Site "https://www.chess.com"]

[Event "Titled Tuesday Blitz November 08 Early 2022"]
[White "Bagrationi, Alexander"]
[Black "Guimaraes, Wagner Peixoto"]
[WhiteFideId "14104954"]
[BlackFideId "2100940"]
[WhiteElo "2398"]
[BlackElo "2231"]
[Result "1-0"]
[Round "05"]
[TimeControl "180+1"]
[Date "2022.11.09"]
[WhiteClock "0:00:08"]
[BlackClock "0:00:04"]

1. e4 {[%clk 0:02:54]}  c5 {[%clk 0:02:54]} 2. Be2 {[%clk 0:02:54]}  e6 {[%clk 0:02:54]} 3. f4 {[%clk 0:02:54]}  b6 {[%clk 0:02:53]} 4. Nf3 {[%clk 0:02:54]}  Bb7 {[%clk 0:02:53]} 5. d3 {[%clk 0:02:55]}  Nc6 {[%clk 0:02:52]} 6. O-O {[%clk 0:02:55]}  d6 {[%clk 0:02:53]} 7. c3 {[%clk 0:02:55]}  Nf6 {[%clk 0:02:52]} 8. Kh1 {[%clk 0:02:56]}  Qc7 {[%clk 0:02:51]} 9. Be3 {[%clk 0:02:56]}  a6 {[%clk 0:02:51]} 10. Nbd2 {[%clk 0:02:56]}  Be7 {[%clk 0:02:50]} 11. d4 {[%clk 0:02:46]}  O-O {[%clk 0:02:39]} 12. Qe1 {[%clk 0:02:35]}  cxd4 {[%clk 0:02:35]} 13. cxd4 {[%clk 0:02:32]}  Nb4 {[%clk 0:02:34]} 14. Rc1 {[%clk 0:02:29]}  Qd7 {[%clk 0:02:16]} 15. a3 {[%clk 0:02:27]}  Nc6 {[%clk 0:02:16]} 16. Qg3 {[%clk 0:02:13]}  g6 {[%clk 0:02:15]} 17. Qh3 {[%clk 0:02:05]}  h5 {[%clk 0:01:39]} 18. Ng5 {[%clk 0:01:32]}  e5 {[%clk 0:01:27]} 19. f5 {[%clk 0:01:26]}  exd4 {[%clk 0:01:23]} 20. Bg1 {[%clk 0:01:19]}  Ne5 {[%clk 0:01:16]} 21. Bxd4 {[%clk 0:01:11]}  Nfg4 {[%clk 0:01:10]} 22. Ndf3 {[%clk 0:00:46]}  Bf6 {[%clk 0:00:49]} 23. Bxb6 {[%clk 0:00:43]}  Rac8 {[%clk 0:00:42]} 24. Rcd1 {[%clk 0:00:42]}  Qc6 {[%clk 0:00:33]} 25. Bd4 {[%clk 0:00:31]}  Bg7 {[%clk 0:00:33]} 26. Nxe5 {[%clk 0:00:24]}  dxe5 {[%clk 0:00:16]} 27. Bc3 {[%clk 0:00:24]}  Nf6 {[%clk 0:00:09]} 28. fxg6 {[%clk 0:00:20]}  fxg6 {[%clk 0:00:08]} 29. Bf3 {[%clk 0:00:15]}  Rfe8 {[%clk 0:00:07]} 30. Rd2 {[%clk 0:00:13]}  Qc4 {[%clk 0:00:07]} 31. Rfd1 {[%clk 0:00:13]}  Bh6 {[%clk 0:00:06]} 32. Qh4 {[%clk 0:00:12]}  Kg7 {[%clk 0:00:04]} 33. h3 {[%clk 0:00:12]}  Qc6 {[%clk 0:00:02]} 34. Rd6 {[%clk 0:00:12]}  Qc4 {[%clk 0:00:02]} 35. Rxf6 {[%clk 0:00:12]}  Kxf6 {[%clk 0:00:03]} 36. Rd6+ {[%clk 0:00:08]}  Kg7 {[%clk 0:00:02]} 37. Rd7+ {[%clk 0:00:08]}  Kg8 {[%clk 0:00:03]} 38. Rxb7 {[%clk 0:00:08]}  Qf1+ {[%clk 0:00:03]} 39. Kh2 {[%clk 0:00:08]}  Qc1 {[%clk 0:00:03]} 40. Nh7 {[%clk 0:00:07]}  Qf4+ {[%clk 0:00:02]} 41. Qxf4 {[%clk 0:00:06]}  Bxf4+ {[%clk 0:00:03]} 42. g3 {[%clk 0:00:07]}  Bh6 {[%clk 0:00:03]} 43. Nf6+ {[%clk 0:00:07]}  Kf8 {[%clk 0:00:04]} 44. Bb4+ {[%clk 0:00:08]} 1-0


[Site "https://www.chess.com"]

[Event "Titled Tuesday Blitz November 08 Early 2022"]
[White "Balkum, Alexander"]
[Black "Taboas Rodriguez, Daniel"]
[WhiteFideId "2005069"]
[BlackFideId "2208466"]
[WhiteElo "2357"]
[BlackElo "2329"]
[Result "0-1"]
[Round "05"]
[TimeControl "180+1"]
[Date "2022.11.09"]
[WhiteClock "0:00:07"]
[BlackClock "0:01:07"]

1. e4 {[%clk 0:03:00]}  e5 {[%clk 0:02:31]} 2. Nf3 {[%clk 0:02:58]}  Nc6 {[%clk 0:02:30]} 3. d4 {[%clk 0:02:59]}  exd4 {[%clk 0:02:30]} 4. Nxd4 {[%clk 0:03:00]}  Nf6 {[%clk 0:02:30]} 5. Nc3 {[%clk 0:02:59]}  Bb4 {[%clk 0:02:30]} 6. Nxc6 {[%clk 0:02:59]}  bxc6 {[%clk 0:02:30]} 7. Bd3 {[%clk 0:02:59]}  d5 {[%clk 0:02:31]} 8. exd5 {[%clk 0:03:00]}  O-O {[%clk 0:02:30]} 9. O-O {[%clk 0:03:00]}  cxd5 {[%clk 0:02:31]} 10. Bg5 {[%clk 0:02:58]}  c6 {[%clk 0:02:31]} 11. Qf3 {[%clk 0:02:58]}  Re8 {[%clk 0:02:28]} 12. Ne2 {[%clk 0:02:27]}  Bg4 {[%clk 0:02:14]} 13. Qxg4 {[%clk 0:02:11]}  Nxg4 {[%clk 0:02:11]} 14. Bxd8 {[%clk 0:02:12]}  Raxd8 {[%clk 0:02:12]} 15. Nd4 {[%clk 0:01:50]}  Ne5 {[%clk 0:01:42]} 16. a3 {[%clk 0:00:44]}  Bc5 {[%clk 0:01:41]} 17. Nb3 {[%clk 0:00:42]}  Bb6 {[%clk 0:01:40]} 18. Rad1 {[%clk 0:00:19]}  Nxd3 {[%clk 0:01:22]} 19. Rxd3 {[%clk 0:00:20]}  Re2 {[%clk 0:01:23]} 20. Rd2 {[%clk 0:00:20]}  Rxd2 {[%clk 0:01:23]} 21. Nxd2 {[%clk 0:00:20]}  Re8 {[%clk 0:01:22]} 22. Nb3 {[%clk 0:00:13]}  Re2 {[%clk 0:01:21]} 23. Na1 {[%clk 0:00:09]}  f5 {[%clk 0:01:19]} 24. g3 {[%clk 0:00:09]}  Kf7 {[%clk 0:01:18]} 25. Kg2 {[%clk 0:00:10]}  g5 {[%clk 0:01:10]} 26. Kf3 {[%clk 0:00:10]}  Rd2 {[%clk 0:01:10]} 27. h3 {[%clk 0:00:09]}  h5 {[%clk 0:01:10]} 28. g4 {[%clk 0:00:10]}  fxg4+ {[%clk 0:01:09]} 29. hxg4 {[%clk 0:00:11]}  h4 {[%clk 0:01:09]} 30. b3 {[%clk 0:00:07]}  a5 {[%clk 0:01:07]} 31. b4 {[%clk 0:00:07]}  a4 {[%clk 0:01:07]} 0-1


[Site "https://www.chess.com"]

[Event "Titled Tuesday Blitz November 08 Early 2022"]
[White "Barash, Anton"]
[Black "Salman, Pavel"]
[WhiteFideId "30935229"]
[BlackFideId "24153753"]
[WhiteElo "2265"]
[BlackElo "2187"]
[Result "1/2-1/2"]
[Round "05"]
[TimeControl "180+1"]
[Date "2022.11.09"]
[WhiteClock "0:01:35"]
[BlackClock "0:02:34"]

1. e4 {[%clk 0:03:00]}  d6 {[%clk 0:02:59]} 2. d4 {[%clk 0:02:59]}  Nf6 {[%clk 0:03:00]} 3. Nc3 {[%clk 0:03:00]}  g6 {[%clk 0:03:00]} 4. f4 {[%clk 0:02:59]}  Bg7 {[%clk 0:03:00]} 5. Nf3 {[%clk 0:02:58]}  c5 {[%clk 0:03:01]} 6. Bb5+ {[%clk 0:02:57]}  Bd7 {[%clk 0:03:00]} 7. e5 {[%clk 0:02:57]}  Ng4 {[%clk 0:02:55]} 8. e6 {[%clk 0:02:57]}  fxe6 {[%clk 0:02:45]} 9. Ng5 {[%clk 0:02:56]}  Bxb5 {[%clk 0:02:35]} 10. Nxe6 {[%clk 0:02:53]}  Bxd4 {[%clk 0:02:34]} 11. Nxd8 {[%clk 0:01:35]}  Bf2+ {[%clk 0:02:34]} 12. Kd2 {[%clk 0:01:35]}  Be3+ {[%clk 0:02:34]} 13. Ke1 {[%clk 0:01:36]}  Bf2+ {[%clk 0:02:35]} 14. Kd2 {[%clk 0:01:36]}  Be3+ {[%clk 0:02:36]} 15. Ke1 {[%clk 0:01:36]}  Bf2+ {[%clk 0:02:34]} 16. Kd2 {[%clk 0:01:35]} 1/2-1/2


[Site "https://www.chess.com"]

[Event "Titled Tuesday Blitz November 08 Early 2022"]
[White "Barbashin, Igor"]
[Black "Ilkhomi, Jaloliddin"]
[WhiteFideId "4155718"]
[BlackFideId "14700948"]
[WhiteElo "2138"]
[BlackElo "2045"]
[Result "0-1"]
[Round "05"]
[TimeControl "180+1"]
[Date "2022.11.09"]
[WhiteClock "0:00:01"]
[BlackClock "0:00:03"]

1. d4 {[%clk 0:03:00]}  Nf6 {[%clk 0:02:59]} 2. c4 {[%clk 0:03:00]}  e6 {[%clk 0:02:59]} 3. Nc3 {[%clk 0:02:59]}  Bb4 {[%clk 0:02:59]} 4. Nf3 {[%clk 0:02:59]}  O-O {[%clk 0:03:00]} 5. g3 {[%clk 0:02:59]}  b6 {[%clk 0:03:00]} 6. Bg2 {[%clk 0:02:59]}  Bb7 {[%clk 0:03:01]} 7. O-O {[%clk 0:02:59]}  Bxc3 {[%clk 0:03:00]} 8. bxc3 {[%clk 0:03:00]}  Ne4 {[%clk 0:03:01]} 9. Qd3 {[%clk 0:02:53]}  f5 {[%clk 0:03:01]} 10. Ng5 {[%clk 0:02:51]}  Nd6 {[%clk 0:02:42]} 11. Bxb7 {[%clk 0:02:49]}  Nxb7 {[%clk 0:02:43]} 12. e4 {[%clk 0:02:49]}  h6 {[%clk 0:02:37]} 13. Nh3 {[%clk 0:02:46]}  Nd6 {[%clk 0:02:36]} 14. e5 {[%clk 0:02:40]}  Nf7 {[%clk 0:02:35]} 15. Nf4 {[%clk 0:02:30]}  Kh7 {[%clk 0:02:32]} 16. Re1 {[%clk 0:02:23]}  Nc6 {[%clk 0:02:29]} 17. Qf3 {[%clk 0:02:01]}  Ne7 {[%clk 0:02:15]} 18. d5 {[%clk 0:01:52]}  exd5 {[%clk 0:01:50]} 19. cxd5 {[%clk 0:01:50]}  Ng5 {[%clk 0:01:40]} 20. Qd3 {[%clk 0:01:46]}  Qe8 {[%clk 0:01:09]} 21. h4 {[%clk 0:01:35]}  Ne4 {[%clk 0:01:09]} 22. Ba3 {[%clk 0:01:22]}  Qf7 {[%clk 0:00:55]} 23. Rxe4 {[%clk 0:01:14]}  fxe4 {[%clk 0:00:56]} 24. Qxe4+ {[%clk 0:01:13]}  Qf5 {[%clk 0:00:53]} 25. Qxf5+ {[%clk 0:01:10]}  Rxf5 {[%clk 0:00:52]} 26. Bxe7 {[%clk 0:01:08]}  Rxe5 {[%clk 0:00:50]} 27. d6 {[%clk 0:00:58]}  Re8 {[%clk 0:00:36]} 28. Kg2 {[%clk 0:00:51]}  Rc5 {[%clk 0:00:27]} 29. Rc1 {[%clk 0:00:41]}  Rc6 {[%clk 0:00:27]} 30. h5 {[%clk 0:00:24]}  cxd6 {[%clk 0:00:26]} 31. Bh4 {[%clk 0:00:14]}  Rec8 {[%clk 0:00:21]} 32. Ne2 {[%clk 0:00:13]}  Rc4 {[%clk 0:00:20]} 33. Rd1 {[%clk 0:00:12]}  R8c6 {[%clk 0:00:19]} 34. Be7 {[%clk 0:00:11]}  Re4 {[%clk 0:00:18]} 35. Nd4 {[%clk 0:00:08]}  Rxe7 {[%clk 0:00:14]} 36. Nxc6 {[%clk 0:00:08]}  dxc6 {[%clk 0:00:15]} 37. Rxd6 {[%clk 0:00:08]}  Re5 {[%clk 0:00:15]} 38. Rxc6 {[%clk 0:00:08]}  Rxh5 {[%clk 0:00:16]} 39. Rc7 {[%clk 0:00:06]}  Ra5 {[%clk 0:00:16]} 40. f4 {[%clk 0:00:02]}  Rxa2+ {[%clk 0:00:16]} 41. Kf3 {[%clk 0:00:02]}  a5 {[%clk 0:00:13]} 42. f5 {[%clk 0:00:02]}  Rc2 {[%clk 0:00:12]} 43. f6 {[%clk 0:00:01]}  Kg6 {[%clk 0:00:03]} 0-1


[Site "https://www.chess.com"]